[Event "Superettan 2017/2018"]
[Site "Vegagatan 20, Gothenburg, Sweden"]
[Date "2018.02.03"]
[Round "2.6"]
[White "Lindahl, Emil"]
[Black "Hultin, Johan"]
[Result "1/2-1/2"]
[TimeControl "90 minutes for 40 moves + 30 minutes for the rest of the game + 30 seconds per move from move one."]
[BlackTitle "FM"]
[WhiteFideId "1713116"]
[BlackFideId "1701983"]
[WhiteElo "2177"]
[BlackElo "2290"]

1. Nf3 {[%clk 01:30:56]} {[%emt 00:00:03]} d5 {[%clk 01:27:47]} {[%emt
00:03:13]} 2. e3 {[%clk 01:31:00]} {[%emt 00:00:27]} Nf6 {[%clk 01:26:49]}
{[%emt 00:15:41]} 3. c4 {[%clk 01:30:36]} c6 {[%clk 01:26:13]} 4. Nc3 {[%clk
01:29:37]} g6 {[%clk 01:26:36]} 5. b3 {[%clk 01:28:36]} Bg7 {[%clk 01:25:57]} 6.
Bb2 {[%clk 01:28:47]} O-O {[%clk 01:26:21]} 7. Be2 {[%clk 01:23:45]} Bg4 {[%clk
01:19:20]} {[%emt 00:05:30]} 8. O-O {[%clk 01:18:31]} {[%emt 00:05:44]} Nbd7
{[%clk 01:18:00]} {[%emt 00:01:50]} 9. d4 {[%clk 00:59:33]} {[%emt 00:21:57]}
e6 {[%clk 01:13:26]} {[%emt 00:02:35]} 10. h3 {[%clk 00:54:54]} {[%emt
00:05:10]} Bxf3 {[%clk 01:13:22]} {[%emt 00:00:34]} 11. Bxf3 {[%clk 00:55:14]}
{[%emt 00:00:09]} Re8 {[%clk 01:13:27]} {[%emt 00:00:25]} 12. cxd5 {[%clk
00:47:03]} {[%emt 00:08:42]} exd5 {[%clk 01:11:51]} {[%emt 00:02:05]} 13. Rc1
{[%clk 00:46:50]} {[%emt 00:00:43]} Bf8 {[%clk 01:03:55]} {[%emt 00:08:26]} 14.
Qc2 {[%clk 00:29:08]} {[%emt 00:18:12]} Nb6 {[%clk 00:53:05]} {[%emt 00:11:19]}
15. Rfe1 {[%clk 00:22:11]} {[%emt 00:07:28]} Rc8 {[%clk 00:49:27]} {[%emt
00:04:07]} 16. Nb1 {[%clk 00:14:55]} {[%emt 00:07:47]} Bd6 {[%clk 00:47:25]}
{[%emt 00:02:33]} 17. Ba3 {[%clk 00:13:12]} {[%emt 00:02:14]} Bb8 {[%clk
00:47:47]} {[%emt 00:00:07]} 18. Nd2 {[%clk 00:13:27]} {[%emt 00:00:15]} Re6
{[%clk 00:40:07]} {[%emt 00:08:09]} 19. Nf1 {[%clk 00:09:52]} {[%emt 00:04:05]}
Ne4 {[%clk 00:37:35]} {[%emt 00:03:02]} 20. Bb4 {[%clk 00:07:01]} {[%emt
00:03:22]} Qh4 {[%clk 00:33:31]} {[%emt 00:04:32]} 21. Ba5 {[%clk 00:06:34]}
{[%emt 00:00:58]} Nd7 {[%clk 00:30:50]} {[%emt 00:03:11]} 22. Bxe4 {[%clk
00:05:43]} {[%emt 00:01:22]} Rxe4 {[%clk 00:29:21]} {[%emt 00:01:58]} 23. f3
{[%clk 00:05:46]} {[%emt 00:00:28]} Re6 {[%clk 00:28:36]} {[%emt 00:01:14]} 24.
Re2 {[%clk 00:06:00]} {[%emt 00:00:17]} Rce8 {[%clk 00:27:14]} {[%emt
00:01:52]} 25. Be1 {[%clk 00:05:50]} {[%emt 00:00:41]} Qe7 {[%clk 00:23:47]}
{[%emt 00:03:57]} 26. Bf2 {[%clk 00:06:00]} {[%emt 00:00:20]} f5 {[%clk
00:22:37]} {[%emt 00:01:39]} 27. Rce1 {[%clk 00:02:45]} {[%emt 00:03:46]} Bd6
{[%clk 00:22:17]} {[%emt 00:00:49]} 28. Rd1 {[%clk 00:01:56]} {[%emt 00:01:20]}
Qf8 {[%clk 00:17:45]} {[%emt 00:05:02]} 29. Red2 {[%clk 00:01:37]} {[%emt
00:00:48]} Nf6 {[%clk 00:17:49]} {[%emt 00:00:26]} 30. Rd3 {[%clk 00:01:41]}
{[%emt 00:00:27]} Nh5 {[%clk 00:17:30]} {[%emt 00:00:48]} 31. f4 {[%clk
00:00:52]} {[%emt 00:01:20]} Nf6 {[%clk 00:15:31]} {[%emt 00:02:29]} 32. Nd2
{[%clk 00:01:00]} {[%emt 00:00:22]} Ne4 {[%clk 00:15:55]} {[%emt 00:00:06]} 33.
Nxe4 {[%clk 00:00:44]} {[%emt 00:00:46]} Rxe4 {[%clk 00:16:23]} {[%emt
00:00:02]} 34. g3 {[%clk 00:00:39]} {[%emt 00:00:35]} h6 {[%clk 00:15:04]}
{[%emt 00:01:48]} 35. Qe2 {[%clk 00:00:48]} {[%emt 00:00:21]} Qf7 {[%clk
00:15:05]} {[%emt 00:00:30]} 36. Qf3 {[%clk 00:01:12]} {[%emt 00:00:06]} g5
{[%clk 00:15:27]} {[%emt 00:00:07]} 37. Kh1 {[%clk 00:01:05]} {[%emt 00:00:37]}
Kh7 {[%clk 00:15:38]} {[%emt 00:00:20]} 38. Rf1 {[%clk 00:01:10]} {[%emt
00:00:24]} Rg8 {[%clk 00:15:56]} {[%emt 00:00:12]} 39. Be1 {[%clk 00:00:36]}
{[%emt 00:01:05]} gxf4 {[%clk 00:15:02]} {[%emt 00:01:24]} 40. gxf4 {[%clk
00:00:48]} {[%emt 00:00:18]} Re6 {[%clk 00:04:37]} {[%emt 00:10:54]} 41. Bf2
{[%clk 00:28:17]} {[%emt 00:03:00]} Reg6 {[%clk 00:34:48]} {[%emt 00:00:18]} 42.
Rdd1 {[%clk 00:27:38]} {[%emt 00:01:10]} Qe6 {[%clk 00:29:36]} {[%emt
00:05:43]} 43. Rg1 {[%clk 00:24:21]} {[%emt 00:03:47]} Qe4 {[%clk 00:30:00]}
{[%emt 00:00:05]} 44. Qxe4 {[%clk 00:24:28]} {[%emt 00:00:23]} dxe4 {[%clk
00:30:28]} {[%emt 00:00:02]} 45. Rxg6 {[%clk 00:23:59]} {[%emt 00:01:00]} Rxg6
{[%clk 00:30:56]} {[%emt 00:00:01]} 46. Rg1 {[%clk 00:20:49]} {[%emt 00:03:39]}
Re6 {[%clk 00:29:35]} {[%emt 00:01:51]} 47. Be1 {[%clk 00:18:57]} {[%emt
00:02:22]} Re8 {[%clk 00:22:35]} {[%emt 00:07:30]} 48. h4 {[%clk 00:14:54]}
{[%emt 00:04:34]} Rg8 {[%clk 00:14:21]} {[%emt 00:08:43]} 49. h5 {[%clk
00:11:58]} {[%emt 00:03:27]} Rxg1 {[%clk 00:14:37]} {[%emt 00:00:15]} 50. Kxg1
{[%clk 00:12:27]} Kg7 {[%clk 00:14:58]} {[%emt 00:00:08]} 51. Kf1 {[%clk
00:12:26]} {[%emt 00:00:31]} Kf7 {[%clk 00:15:24]} {[%emt 00:00:04]} 52. Bc3
{[%clk 00:12:25]} {[%emt 00:00:31]} Ke6 {[%clk 00:14:20]} {[%emt 00:01:35]} 53.
Ke2 {[%clk 00:11:59]} {[%emt 00:00:55]} Kd5 {[%clk 00:14:45]} {[%emt 00:00:05]}
54. Kd2 {[%clk 00:10:15]} {[%emt 00:02:14]} Be7 {[%clk 00:14:37]} {[%emt
00:00:38]} 55. Kc2 {[%clk 00:10:20]} {[%emt 00:00:26]} Bh4 {[%clk 00:14:58]}
{[%emt 00:00:08]} 56. Kd2 {[%clk 00:10:35]} {[%emt 00:00:15]} Be7 {[%clk
00:15:12]} {[%emt 00:00:17]} 57. Kc2 {[%clk 00:10:59]} {[%emt 00:00:05]} Bd6
{[%clk 00:15:08]} {[%emt 00:00:33]} 58. Kd2 {[%clk 00:11:18]} {[%emt 00:00:12]}
Be7 {[%clk 00:12:12]} {[%emt 00:03:25]} 1/2-1/2

[Event "Superettan 2017/2018"]
[Site "Vegagatan 20, Gothenburg, Sweden"]
[Date "2018.02.03"]
[Round "2.7"]
[White "Storme, Isak"]
[Black "Sevastianov, Andrii"]
[Result "1/2-1/2"]
[TimeControl "90 minutes for 40 moves + 30 minutes for the rest of the game + 30 seconds per move from move one."]
[WhiteTitle "CM"]
[WhiteFideId "1728113"]
[BlackFideId "1730240"]
[WhiteElo "2213"]
[BlackElo "2126"]

1. d4 {[%clk 01:30:58]} {[%emt 00:00:02]} d5 {[%clk 01:30:50]} {[%emt
00:00:10]} 2. Nf3 {[%clk 01:31:02]} {[%emt 00:00:25]} Nf6 {[%clk 01:31:06]}
{[%emt 00:00:13]} 3. c4 {[%clk 01:31:26]} {[%emt 00:00:07]} e6 {[%clk
01:31:27]} {[%emt 00:00:09]} 4. Nc3 {[%clk 01:29:10]} {[%emt 00:02:47]} Be7
{[%clk 01:31:15]} {[%emt 00:15:30]} 5. Bf4 {[%clk 01:28:44]} O-O {[%clk
01:30:28]} 6. e3 {[%clk 01:29:00]} b6 {[%clk 01:29:13]} 7. Rc1 {[%clk
01:24:54]} c5 {[%clk 01:25:44]} 8. cxd5 {[%clk 01:19:32]} {[%emt 00:03:51]}
Nxd5 {[%clk 01:22:28]} {[%emt 00:03:45]} 9. Nxd5 {[%clk 01:18:51]} {[%emt
00:01:12]} Qxd5 {[%clk 01:19:36]} {[%emt 00:03:21]} 10. Bc4 {[%clk 01:17:47]}
{[%emt 00:01:34]} Qh5 {[%clk 01:13:46]} {[%emt 00:21:15]} 11. d5 {[%clk
01:06:51]} Ba6 {[%clk 01:13:19]} 12. Bxa6 {[%clk 00:50:27]} {[%emt 00:14:23]}
Nxa6 {[%clk 01:13:42]} {[%emt 00:00:07]} 13. dxe6 {[%clk 00:49:43]} {[%emt
00:01:14]} Rad8 {[%clk 00:49:27]} {[%emt 00:24:44]} 14. Qb3 {[%clk 00:43:03]}
{[%emt 00:07:10]} Nb4 {[%clk 00:46:25]} {[%emt 00:03:33]} 15. O-O {[%clk
00:38:15]} {[%emt 00:05:17]} fxe6 {[%clk 00:38:07]} {[%emt 00:08:49]} 16. Qxe6+
{[%clk 00:38:35]} {[%emt 00:00:11]} Qf7 {[%clk 00:38:32]} {[%emt 00:00:05]} 17.
Qxf7+ {[%clk 00:38:26]} {[%emt 00:00:39]} Kxf7 {[%clk 00:38:49]} {[%emt
00:00:12]} 18. Ne5+ {[%clk 00:34:39]} {[%emt 00:04:17]} Ke6 {[%clk 00:38:14]}
{[%emt 00:01:05]} 19. a3 {[%clk 00:25:44]} {[%emt 00:09:26]} Nd3 {[%clk
00:38:14]} {[%emt 00:00:30]} 20. Nxd3 {[%clk 00:25:14]} {[%emt 00:01:01]} Rxd3
{[%clk 00:38:30]} {[%emt 00:00:12]} 21. Rfd1 {[%clk 00:20:12]} {[%emt
00:05:33]} Rfd8 {[%clk 00:38:24]} {[%emt 00:00:35]} 22. Rxd3 {[%clk 00:19:58]}
{[%emt 00:00:46]} Rxd3 {[%clk 00:38:44]} {[%emt 00:00:07]} 23. Bb8 {[%clk
00:17:04]} {[%emt 00:03:26]} a6 {[%clk 00:36:34]} {[%emt 00:02:40]} 24. Ba7
{[%clk 00:13:33]} {[%emt 00:04:01]} Rb3 {[%clk 00:27:45]} {[%emt 00:09:18]} 25.
Rc2 {[%clk 00:13:12]} {[%emt 00:00:52]} Bf6 {[%clk 00:27:50]} {[%emt 00:00:26]}
26. Kf1 {[%clk 00:13:01]} {[%emt 00:00:39]} Kd5 {[%clk 00:17:45]} {[%emt
00:10:37]} 27. Ke2 {[%clk 00:12:06]} {[%emt 00:01:23]} Be5 {[%clk 00:16:35]}
{[%emt 00:01:41]} 28. f4 {[%clk 00:11:49]} {[%emt 00:00:47]} Bxb2 {[%clk
00:13:33]} {[%emt 00:03:32]} 29. a4 {[%clk 00:12:12]} {[%emt 00:00:08]} Bc3
{[%clk 00:13:00]} {[%emt 00:01:02]} 30. Bxb6 {[%clk 00:11:57]} {[%emt
00:00:45]} c4 {[%clk 00:11:07]} {[%emt 00:02:22]} 31. Bd8 {[%clk 00:08:21]}
{[%emt 00:04:08]} Ke4 {[%clk 00:10:43]} {[%emt 00:00:53]} 32. a5 {[%clk
00:07:32]} {[%emt 00:01:19]} h5 {[%clk 00:09:24]} {[%emt 00:01:49]} 33. Be7
{[%clk 00:05:34]} {[%emt 00:02:28]} g6 {[%clk 00:09:35]} {[%emt 00:00:20]} 34.
h3 {[%clk 00:05:46]} {[%emt 00:00:17]} Rb2 {[%clk 00:08:17]} {[%emt 00:01:48]}
35. Rxb2 {[%clk 00:04:37]} {[%emt 00:01:40]} Bxb2 {[%clk 00:08:40]} {[%emt
00:00:06]} 36. g4 {[%clk 00:03:17]} {[%emt 00:01:50]} hxg4 {[%clk 00:08:50]}
{[%emt 00:00:20]} 37. hxg4 {[%clk 00:03:42]} {[%emt 00:00:06]} Bc3 {[%clk
00:08:52]} {[%emt 00:00:28]} 38. Bd8 {[%clk 00:03:12]} {[%emt 00:01:00]} Bg7
{[%clk 00:07:25]} {[%emt 00:01:56]} 39. Bb6 {[%clk 00:01:42]} {[%emt 00:02:00]}
Bf6 {[%clk 00:07:28]} {[%emt 00:00:26]} 40. Kd2 {[%clk 00:00:39]} {[%emt
00:01:34]} Kd5 {[%clk 00:02:48]} {[%emt 00:05:10]} 41. f5 {[%clk 00:27:00]}
{[%emt 00:04:09]} gxf5 {[%clk 00:32:57]} {[%emt 00:00:21]} 42. gxf5 {[%clk
00:27:23]} {[%emt 00:00:07]} Bh4 {[%clk 00:21:04]} {[%emt 00:12:23]} 43. Bd4
{[%clk 00:25:19]} {[%emt 00:02:33]} Bd8 {[%clk 00:16:28]} {[%emt 00:05:08]} 44.
Bc3 {[%clk 00:24:40]} {[%emt 00:01:08]} Be7 {[%clk 00:16:52]} {[%emt 00:00:07]}
45. Kc2 {[%clk 00:16:44]} {[%emt 00:08:26]} Bc5 {[%clk 00:14:40]} {[%emt
00:02:43]} 46. Bd4 {[%clk 00:11:23]} {[%emt 00:05:50]} Bb4 {[%clk 00:14:11]}
{[%emt 00:01:00]} 47. f6 {[%clk 00:08:55]} {[%emt 00:02:57]} Bxa5 {[%clk
00:08:10]} {[%emt 00:06:31]} 48. f7 {[%clk 00:06:48]} {[%emt 00:02:38]} Bb4
{[%clk 00:08:15]} {[%emt 00:00:24]} 49. Bg7 {[%clk 00:04:49]} {[%emt 00:02:29]}
Ke4 {[%clk 00:08:33]} {[%emt 00:00:12]} 50. Bh6 {[%clk 00:05:09]} {[%emt
00:00:10]} a5 {[%clk 00:08:49]} {[%emt 00:00:14]} 51. f8=B {[%clk 00:03:46]}
{[%emt 00:01:53]} Bxf8 {[%clk 00:08:38]} {[%emt 00:00:42]} 52. Bxf8 {[%clk
00:04:11]} {[%emt 00:00:05]} Kxe3 {[%clk 00:08:58]} {[%emt 00:00:10]} 53. Kc3
{[%clk 00:04:36]} {[%emt 00:00:05]} a4 {[%clk 00:09:12]} {[%emt 00:00:16]} 54.
Kxc4 {[%clk 00:05:02]} {[%emt 00:00:04]} a3 {[%clk 00:09:35]} {[%emt 00:00:07]}
55. Bxa3 {[%clk 00:05:28]} {[%emt 00:00:04]} 1/2-1/2

[Event "Superettan 2017/2018"]
[Site "Vegagatan 20, Gothenburg, Sweden"]
[Date "2018.02.03"]
[Round "2.8"]
[White "Olofsson-Dolk, Mattis"]
[Black "Al Waeli, Laith"]
[Result "1/2-1/2"]
[TimeControl "90 minutes for 40 moves + 30 minutes for the rest of the game + 30 seconds per move from move one."]
[BlackTitle "FM"]
[WhiteFideId "1715178"]
[BlackFideId "4801059"]
[WhiteElo "2165"]
[BlackElo "2069"]

1. d4 {[%clk 01:30:58]} {[%emt 00:00:02]} e6 {[%clk 01:12:13]} {[%emt
00:19:22]} 2. c4 {[%clk 01:31:11]} Nf6 {[%clk 01:10:22]} {[%emt 00:02:03]} 3.
Nc3 {[%clk 01:31:36]} {[%emt 00:00:05]} Bb4 {[%clk 01:10:44]} {[%emt 00:00:07]}
4. e3 {[%clk 01:32:00]} {[%emt 00:00:07]} O-O {[%clk 01:11:01]} {[%emt
00:00:11]} 5. Nge2 {[%clk 01:32:27]} {[%emt 00:00:04]} d5 {[%clk 01:10:18]}
{[%emt 00:01:14]} 6. a3 {[%clk 01:32:47]} {[%emt 00:00:11]} Be7 {[%clk
01:09:24]} {[%emt 00:01:23]} 7. cxd5 {[%clk 01:32:50]} {[%emt 00:00:27]} exd5
{[%clk 01:09:34]} {[%emt 00:00:19]} 8. Nf4 {[%clk 01:33:07]} {[%emt 00:00:14]}
c6 {[%clk 01:06:51]} {[%emt 00:03:14]} 9. Bd3 {[%clk 01:33:24]} {[%emt
00:00:13]} Nbd7 {[%clk 01:05:51]} {[%emt 00:01:28]} 10. O-O {[%clk 01:33:38]}
{[%emt 00:00:18]} Re8 {[%clk 01:06:13]} {[%emt 00:00:07]} 11. f3 {[%clk
01:33:20]} {[%emt 00:00:49]} Nf8 {[%clk 01:03:10]} {[%emt 00:03:33]} 12. Bc2
{[%clk 01:33:24]} {[%emt 00:00:26]} Bd6 {[%clk 00:51:13]} {[%emt 00:18:26]} 13.
e4 {[%clk 01:29:24]} Bxf4 14. Bxf4 {[%clk 01:29:46]} Ng6 {[%clk 00:51:35]} 15.
Bg5 {[%clk 01:26:35]} {[%emt 00:02:56]} h6 {[%clk 00:50:56]} {[%emt 00:01:10]}
16. Bxf6 {[%clk 01:26:04]} {[%emt 00:01:00]} Qxf6 {[%clk 00:49:59]} {[%emt
00:01:28]} 17. e5 {[%clk 01:19:08]} {[%emt 00:07:26]} Qg5 {[%clk 00:32:10]}
{[%emt 00:18:17]} 18. Bxg6 {[%clk 01:08:01]} {[%emt 00:11:37]} Qxg6 {[%clk
00:27:20]} {[%emt 00:05:21]} 19. b4 {[%clk 01:08:11]} {[%emt 00:00:21]} Bf5
{[%clk 00:26:28]} {[%emt 00:01:22]} 20. Rf2 {[%clk 01:04:50]} {[%emt 00:03:51]}
f6 {[%clk 00:20:41]} {[%emt 00:06:16]} 21. f4 {[%clk 01:03:42]} {[%emt
00:01:38]} Rad8 {[%clk 00:15:35]} {[%emt 00:05:36]} 22. Qd2 {[%clk 00:59:47]}
{[%emt 00:04:25]} Kh7 {[%clk 00:15:08]} {[%emt 00:00:58]} 23. Rc1 {[%clk
00:58:16]} {[%emt 00:02:00]} Bd3 {[%clk 00:11:28]} {[%emt 00:04:09]} 24. Na4
{[%clk 00:56:06]} {[%emt 00:02:40]} fxe5 {[%clk 00:11:06]} {[%emt 00:00:53]} 25.
fxe5 {[%clk 00:55:27]} {[%emt 00:01:09]} Rf8 {[%clk 00:09:22]} {[%emt
00:02:14]} 26. Nc5 {[%clk 00:52:39]} {[%emt 00:03:18]} Rxf2 {[%clk 00:09:35]}
{[%emt 00:00:17]} 27. Qxf2 {[%clk 00:53:00]} {[%emt 00:00:09]} Be4 {[%clk
00:09:51]} {[%emt 00:00:14]} 28. Nxe4 {[%clk 00:50:47]} {[%emt 00:02:44]} dxe4
{[%clk 00:07:29]} {[%emt 00:02:51]} 29. Re1 {[%clk 00:50:19]} {[%emt 00:00:57]}
Rd5 {[%clk 00:04:53]} {[%emt 00:03:06]} 30. Qe3 {[%clk 00:49:48]} {[%emt
00:01:02]} a5 {[%clk 00:05:22]} 31. Qxe4 {[%clk 00:47:48]} {[%emt 00:02:30]}
Qxe4 {[%clk 00:04:51]} {[%emt 00:01:01]} 32. Rxe4 {[%clk 00:48:16]} {[%emt
00:00:02]} Kg8 {[%clk 00:04:59]} {[%emt 00:00:22]} 33. Kf2 {[%clk 00:44:39]}
{[%emt 00:04:08]} axb4 {[%clk 00:05:06]} {[%emt 00:00:23]} 34. axb4 {[%clk
00:45:08]} {[%emt 00:00:02]} Kf7 {[%clk 00:05:07]} {[%emt 00:00:29]} 35. Ke3
{[%clk 00:40:35]} {[%emt 00:05:03]} Rb5 {[%clk 00:05:19]} {[%emt 00:00:16]} 36.
Rf4+ {[%clk 00:38:55]} {[%emt 00:02:10]} Ke7 {[%clk 00:03:39]} {[%emt
00:02:10]} 37. Rg4 {[%clk 00:37:23]} {[%emt 00:02:02]} Kf7 {[%clk 00:01:38]}
{[%emt 00:02:30]} 38. Ke4 {[%clk 00:35:38]} {[%emt 00:02:16]} Rxb4 {[%clk
00:01:47]} {[%emt 00:00:21]} 39. Kf5 {[%clk 00:35:16]} {[%emt 00:00:52]} Rb5
{[%clk 00:01:24]} {[%emt 00:00:54]} 40. h4 {[%clk 00:34:20]} {[%emt 00:01:26]}
Rd5 {[%clk 00:01:31]} {[%emt 00:00:22]} 41. Ke4 {[%clk 00:33:51]} {[%emt
00:01:00]} Rb5 {[%clk 00:20:35]} {[%emt 00:11:25]} 42. Rf4+ {[%clk 01:00:44]}
{[%emt 00:03:37]} Ke6 {[%clk 00:19:55]} {[%emt 00:01:10]} 43. Rg4 {[%clk
00:56:20]} {[%emt 00:04:55]} Kf7 {[%clk 00:19:44]} {[%emt 00:00:40]} 44. h5
{[%clk 00:56:06]} {[%emt 00:00:44]} Rb1 {[%clk 00:13:51]} {[%emt 00:06:23]} 45.
Rg6 {[%clk 00:55:01]} {[%emt 00:01:35]} Re1+ {[%clk 00:13:59]} {[%emt
00:00:22]} 46. Kf3 {[%clk 00:54:19]} {[%emt 00:01:11]} c5 {[%clk 00:13:16]}
{[%emt 00:01:13]} 47. Rb6 {[%clk 00:50:26]} {[%emt 00:04:23]} cxd4 {[%clk
00:13:22]} {[%emt 00:00:24]} 48. Rxb7+ {[%clk 00:50:49]} {[%emt 00:00:07]} Ke6
{[%clk 00:11:12]} {[%emt 00:02:41]} 49. Kf4 {[%clk 00:51:03]} {[%emt 00:00:16]}
d3 {[%clk 00:09:06]} {[%emt 00:02:35]} 50. Rb6+ {[%clk 00:51:12]} {[%emt
00:00:21]} Kd5 {[%clk 00:08:10]} {[%emt 00:01:26]} 51. Rd6+ {[%clk 00:51:05]}
{[%emt 00:00:37]} Kc4 {[%clk 00:08:40]} 52. Kf5 {[%clk 00:50:04]} {[%emt
00:01:31]} Kc3 {[%clk 00:08:49]} {[%emt 00:00:21]} 53. Rc6+ {[%clk 00:50:03]}
{[%emt 00:00:31]} Kd4 {[%clk 00:09:07]} {[%emt 00:00:12]} 54. Rd6+ {[%clk
00:50:19]} {[%emt 00:00:15]} Kc3 {[%clk 00:09:09]} {[%emt 00:00:27]} 55. Rc6+
{[%clk 00:50:36]} {[%emt 00:00:13]} Kd4 {[%clk 00:08:23]} {[%emt 00:01:16]} 56.
Rd6+ {[%clk 00:50:44]} {[%emt 00:00:23]} Kc3 {[%clk 00:07:49]} {[%emt
00:01:03]} 1/2-1/2

[Event "Superettan 2017/2018"]
[Site "Vegagatan 20, Gothenburg, Sweden"]
[Date "2018.02.03"]
[Round "2.9"]
[White "Hamark, Jesper"]
[Black "Tukhaev, Adam"]
[Result "1/2-1/2"]
[TimeControl "90 minutes for 40 moves + 30 minutes for the rest of the game + 30 seconds per move from move one."]
[BlackTitle "GM"]
[WhiteFideId "1704338"]
[BlackFideId "14109476"]
[WhiteElo "2333"]
[BlackElo "2556"]

1. g3 {[%clk 01:30:57]} {[%emt 00:00:03]} g6 {[%clk 01:29:26]} {[%emt
00:01:34]} 2. Bg2 {[%clk 01:31:21]} {[%emt 00:00:06]} Bg7 {[%clk 01:29:24]}
{[%emt 00:00:31]} 3. d4 {[%clk 01:31:34]} {[%emt 00:00:18]} Nf6 {[%clk
01:26:11]} {[%emt 00:16:47]} 4. e4 {[%clk 01:31:40]} d6 {[%clk 01:26:36]} 5.
Ne2 {[%clk 01:32:04]} O-O {[%clk 01:26:58]} 6. O-O {[%clk 01:32:28]} Nc6 {[%clk
01:24:11]} 7. Nbc3 {[%clk 01:32:28]} e6 {[%clk 00:54:48]} {[%emt 00:35:01]} 8.
h3 {[%clk 01:28:14]} Ne7 {[%clk 00:52:06]} 9. Be3 {[%clk 01:20:35]} {[%emt
00:02:28]} h6 {[%clk 00:45:33]} {[%emt 00:07:02]} 10. Qd2 {[%clk 01:16:30]}
{[%emt 00:04:36]} Kh7 {[%clk 00:45:59]} {[%emt 00:00:04]} 11. f4 {[%clk
01:13:15]} {[%emt 00:03:45]} Nd7 {[%clk 00:43:32]} {[%emt 00:02:56]} 12. g4
{[%clk 01:00:11]} {[%emt 00:13:35]} f5 {[%clk 00:40:49]} {[%emt 00:03:12]} 13.
gxf5 {[%clk 00:51:27]} {[%emt 00:09:14]} exf5 {[%clk 00:38:06]} {[%emt
00:03:13]} 14. e5 {[%clk 00:51:22]} {[%emt 00:00:35]} Nb6 {[%clk 00:34:39]}
{[%emt 00:03:56]} 15. b3 {[%clk 00:50:41]} {[%emt 00:01:12]} c6 {[%clk
00:33:56]} {[%emt 00:01:12]} 16. Rad1 {[%clk 00:47:02]} {[%emt 00:04:10]} Be6
{[%clk 00:33:19]} {[%emt 00:01:07]} 17. Qe1 {[%clk 00:41:42]} {[%emt 00:05:50]}
a5 {[%clk 00:28:45]} {[%emt 00:05:03]} 18. Bc1 {[%clk 00:35:24]} {[%emt
00:06:48]} a4 {[%clk 00:27:37]} {[%emt 00:01:38]} 19. Kh1 {[%clk 00:35:32]}
{[%emt 00:00:21]} axb3 {[%clk 00:25:54]} {[%emt 00:02:13]} 20. axb3 {[%clk
00:35:21]} {[%emt 00:00:42]} Qe8 {[%clk 00:15:19]} {[%emt 00:11:04]} 21. Ng1
{[%clk 00:31:05]} {[%emt 00:04:47]} Ned5 {[%clk 00:11:18]} {[%emt 00:04:30]} 22.
Nb1 {[%clk 00:25:00]} {[%emt 00:06:35]} Ra1 {[%clk 00:09:32]} {[%emt 00:02:16]}
23. Ba3 {[%clk 00:21:16]} {[%emt 00:04:15]} dxe5 {[%clk 00:07:49]} {[%emt
00:02:12]} 24. fxe5 {[%clk 00:17:43]} {[%emt 00:04:04]} f4 {[%clk 00:07:12]}
{[%emt 00:01:07]} 25. Bxf8 {[%clk 00:16:09]} {[%emt 00:02:05]} Bxf8 {[%clk
00:07:25]} {[%emt 00:00:16]} 26. Nd2 {[%clk 00:15:10]} {[%emt 00:01:28]} Rxd1
{[%clk 00:07:38]} {[%emt 00:00:18]} 27. Qxd1 {[%clk 00:15:35]} {[%emt
00:00:05]} Ne3 {[%clk 00:07:53]} {[%emt 00:00:14]} 28. Qe2 {[%clk 00:15:07]}
{[%emt 00:00:59]} Nxf1 {[%clk 00:08:02]} {[%emt 00:00:21]} 29. Qxf1 {[%clk
00:14:19]} {[%emt 00:01:17]} Qf7 {[%clk 00:06:34]} {[%emt 00:01:58]} 30. c4
{[%clk 00:14:34]} {[%emt 00:00:16]} Be7 {[%clk 00:06:22]} {[%emt 00:00:42]} 31.
Qd3 {[%clk 00:13:56]} {[%emt 00:01:08]} h5 {[%clk 00:04:17]} {[%emt 00:02:35]}
32. Ne4 {[%clk 00:09:34]} {[%emt 00:04:52]} Kh6 {[%clk 00:04:36]} {[%emt
00:00:10]} 33. Nd6 {[%clk 00:08:38]} {[%emt 00:01:27]} Bxd6 {[%clk 00:04:54]}
{[%emt 00:00:12]} 34. exd6 {[%clk 00:08:58]} {[%emt 00:00:10]} Nd7 {[%clk
00:03:28]} {[%emt 00:01:56]} 35. Nf3 {[%clk 00:06:51]} {[%emt 00:02:37]} g5
{[%clk 00:02:47]} {[%emt 00:01:11]} 36. h4 {[%clk 00:05:24]} {[%emt 00:01:58]}
gxh4 {[%clk 00:03:13]} {[%emt 00:00:03]} 37. Nxh4 {[%clk 00:04:38]} {[%emt
00:01:16]} Qf6 {[%clk 00:03:31]} {[%emt 00:00:12]} 38. Nf3 {[%clk 00:03:19]}
{[%emt 00:01:49]} Bg4 {[%clk 00:00:42]} {[%emt 00:03:19]} 39. c5 {[%clk
00:00:36]} {[%emt 00:03:14]} Bxf3 {[%clk 00:01:08]} {[%emt 00:00:05]} 40. Bxf3
{[%clk 00:00:42]} {[%emt 00:00:23]} Qh4 {[%clk 00:01:34]} {[%emt 00:00:04]} 41.
Kg2 {[%clk 00:26:04]} {[%emt 00:05:08]} Nf6 {[%clk 00:26:17]} {[%emt 00:05:47]}
42. Qe2 {[%clk 00:20:24]} {[%emt 00:06:11]} Qg3+ {[%clk 00:21:23]} {[%emt
00:05:23]} 43. Kf1 {[%clk 00:20:15]} {[%emt 00:00:39]} h4 {[%clk 00:21:25]}
{[%emt 00:00:28]} 44. b4 {[%clk 00:15:16]} {[%emt 00:05:29]} h3 {[%clk
00:19:17]} {[%emt 00:02:38]} 45. b5 {[%clk 00:08:55]} {[%emt 00:06:51]} cxb5
{[%clk 00:16:17]} {[%emt 00:03:29]} 46. Bxb7 {[%clk 00:03:58]} {[%emt
00:05:28]} h2 {[%clk 00:08:44]} {[%emt 00:08:02]} 47. Qf2 {[%clk 00:01:45]}
{[%emt 00:02:43]} Qd3+ {[%clk 00:07:30]} {[%emt 00:01:44]} 48. Kg2 {[%clk
00:01:50]} {[%emt 00:00:26]} Qg6+ {[%clk 00:07:27]} {[%emt 00:00:32]} 49. Kf1
{[%clk 00:01:11]} {[%emt 00:01:10]} Qb1+ {[%clk 00:07:48]} {[%emt 00:00:09]} 50.
Ke2 {[%clk 00:00:35]} {[%emt 00:01:06]} Qc2+ {[%clk 00:03:48]} {[%emt
00:04:29]} 51. Ke1 {[%clk 00:00:54]} {[%emt 00:00:12]} Qc1+ {[%clk 00:04:13]}
{[%emt 00:00:05]} 52. Ke2 {[%clk 00:01:21]} {[%emt 00:00:03]} Qc2+ {[%clk
00:02:07]} {[%emt 00:02:36]} 53. Ke1 {[%clk 00:01:50]} {[%emt 00:00:02]} Qc1+
{[%clk 00:02:33]} {[%emt 00:00:04]} 54. Ke2 {[%clk 00:02:13]} {[%emt 00:00:06]}
Kg5 {[%emt 00:02:56]} 1/2-1/2